{"text_format":"3","workbook":"xlsx","n_sheets":3,"sheets":["НАЧАЛО","ПЛАН МАРКЕТИНГОВОГО БЮДЖЕТА","ДИАГРАММА КАТЕГОРИЙ"],"not_rendered":{"charts":1,"defined_names":4,"pivot_tables":1},"read":"whole","date_system":"1900"}

{"sheet":"НАЧАЛО","index":0,"n_rows":7,"n_cols":2,"rows_kept":7}
[null,"О шаблоне"]
[null,"Создайте бюджетный план маркетинга и диаграмму по категориям в этой книге."]
[null,"Введите категории, объемы и затраты в таблицу на листе бюджетного плана маркетинга. Затраты на мероприятия и ожидаемый общий итог по маркетингу рассчитываются автоматически."]
[null,"Гистограмма с группировкой автоматически обновляется на листе диаграммы по категориям."]
[null,"Примечание. "]
[null,"В столбце A листов “Бюджетный план маркетинга” и “Диаграмма по категориям” содержатся дополнительные инструкции. Этот текст намеренно скрыт. Чтобы удалить этот текст, выделите столбец A и нажмите клавишу DELETE. Чтобы отобразить или скрыть текст, выберите вариант текста дополнительных инструкций ниже."]
[null,"Чтобы получить дополнительные сведения о таблице, нажмите клавиши SHIFT+F10, выберите пункт \"Таблица\", а затем — \"Замещающий текст\". В случае сводных таблиц нажмите клавиши SHIFT+F10 в таблице, выберите \"Параметры сводной таблицы\", а затем откройте вкладку \"Замещающий текст\"."]

{"sheet":"ПЛАН МАРКЕТИНГОВОГО БЮДЖЕТА","index":1,"n_rows":61,"n_cols":7,"rows_kept":61,"merged":[[3,1,3,2],[4,1,4,2],[5,1,5,2],[6,1,6,2]]}
[]
[null,"ПЛАН МАРКЕТИНГОВОГО БЮДЖЕТА"]
[{"$nulls":4},"В этой ячейке содержится срез для фильтрации данных таблицы по основной категории."]
[null,"КОЛИЧЕСТВО УЧАСТНИКОВ",null,50]
[null,"ЗАТРАТЫ НА МЕРОПРИЯТИЕ",null,{"$f":"SUMIF(Данные[Основная категория],\"Мероприятия\",Данные[Ожидаемый промежуточный итог])","v":{"v":2500,"d":"2,500.00 ₽"}}]
[null,"СТОИМОСТЬ МЕРОПРИЯТИЯ НА ОДНОГО ЧЕЛОВЕКА",null,{"$f":"РасходыНаМероприятие/КоличествоУчастников","v":{"v":50,"d":"50.00 ₽"}}]
[null,"ОЖИДАЕМЫЙ ОБЩИЙ ИТОГ ПО МАРКЕТИНГУ",null,{"$f":"SUMIF(Данные[Основная категория],\"<>Мероприятия\",Данные[Ожидаемый промежуточный итог])","v":{"v":45743,"d":"45,743.00 ₽"}}]
[null,"ПРОМЕЖУТОЧНЫЙ ИТОГ",null,{"$f":"SUBTOTAL(109,Данные[Ожидаемый промежуточный итог])","v":{"v":0,"d":"0.00 ₽"}}]
[]
[null,"Основная категория","Дополнительная категория","Предполагаемое количество","Оценочная стоимость единицы","Ожидаемый промежуточный итог","Заметки"]
[null,"Исследования","Услуги исследовательской компании",2,{"v":2300,"d":"2,300.00 ₽"},{"$f":"Данные[[#This Row],[Предполагаемое количество]]*Данные[[#This Row],[Оценочная стоимость единицы]]","v":{"v":4600,"d":"4,600.00 ₽"}}]
[null,"Исследования","Исследование материалов в Интернете",1,{"v":1100,"d":"1,100.00 ₽"},{"$f":"Данные[[#This Row],[Предполагаемое количество]]*Данные[[#This Row],[Оценочная стоимость единицы]]","v":{"v":1100,"d":"1,100.00 ₽"}}]
[null,"Исследования","Независимое исследование",3,{"v":300,"d":"300.00 ₽"},{"$f":"Данные[[#This Row],[Предполагаемое количество]]*Данные[[#This Row],[Оценочная стоимость единицы]]","v":{"v":900,"d":"900.00 ₽"}}]
[null,"Исследования","Прочие исследования",2,{"v":250,"d":"250.00 ₽"},{"$f":"Данные[[#This Row],[Предполагаемое количество]]*Данные[[#This Row],[Оценочная стоимость единицы]]","v":{"v":500,"d":"500.00 ₽"}}]
[null,"Коммуникации","Рекламные буклеты",{"v":5000,"d":"5,000"},{"v":0.15,"d":"0.15 ₽"},{"$f":"Данные[[#This Row],[Предполагаемое количество]]*Данные[[#This Row],[Оценочная стоимость единицы]]","v":{"v":750,"d":"750.00 ₽"}}]
[null,"Коммуникации","Телевидение",5,{"v":4000,"d":"4,000.00 ₽"},{"$f":"Данные[[#This Row],[Предполагаемое количество]]*Данные[[#This Row],[Оценочная стоимость единицы]]","v":{"v":20000,"d":"20,000.00 ₽"}}]
[null,"Коммуникации","Радио",13,{"v":350,"d":"350.00 ₽"},{"$f":"Данные[[#This Row],[Предполагаемое количество]]*Данные[[#This Row],[Оценочная стоимость единицы]]","v":{"v":4550,"d":"4,550.00 ₽"}}]
[null,"Коммуникации","Интернет",1,{"v":350,"d":"350.00 ₽"},{"$f":"Данные[[#This Row],[Предполагаемое количество]]*Данные[[#This Row],[Оценочная стоимость единицы]]","v":{"v":350,"d":"350.00 ₽"}}]
[null,"Сети","Сети",null,null,{"$f":"Данные[[#This Row],[Предполагаемое количество]]*Данные[[#This Row],[Оценочная стоимость единицы]]","v":{"v":0,"d":"0.00 ₽"}}]
[null,"Сети","Членство в группах",3,{"v":50,"d":"50.00 ₽"},{"$f":"Данные[[#This Row],[Предполагаемое количество]]*Данные[[#This Row],[Оценочная стоимость единицы]]","v":{"v":150,"d":"150.00 ₽"}}]
[null,"Сети","Членство в организациях",2,{"v":20,"d":"20.00 ₽"},{"$f":"Данные[[#This Row],[Предполагаемое количество]]*Данные[[#This Row],[Оценочная стоимость единицы]]","v":{"v":40,"d":"40.00 ₽"}}]
[null,"Сети","Подписки",2,{"v":32,"d":"32.00 ₽"},{"$f":"Данные[[#This Row],[Предполагаемое количество]]*Данные[[#This Row],[Оценочная стоимость единицы]]","v":{"v":64,"d":"64.00 ₽"}}]
[null,"Мероприятия","Количество участников",50,null,{"$f":"Данные[[#This Row],[Предполагаемое количество]]*Данные[[#This Row],[Оценочная стоимость единицы]]","v":{"v":0,"d":"0.00 ₽"}}]
[null,"Мероприятия","Питание (завтрак, обед или ужин)",null,null,{"$f":"Данные[[#This Row],[Предполагаемое количество]]*Данные[[#This Row],[Оценочная стоимость единицы]]","v":{"v":0,"d":"0.00 ₽"}}]
[null,"Мероприятия","Еда",null,{"v":23,"d":"23.00 ₽"},{"$f":"Данные[[#This Row],[Предполагаемое количество]]*Данные[[#This Row],[Оценочная стоимость единицы]]","v":{"v":0,"d":"0.00 ₽"}}]
[null,"Мероприятия","Налог (10 %)",null,{"v":2.3000000000000003,"d":"2.30 ₽"},{"$f":"Данные[[#This Row],[Предполагаемое количество]]*Данные[[#This Row],[Оценочная стоимость единицы]]","v":{"v":0,"d":"0.00 ₽"}}]
[null,"Мероприятия","Чаевые (еда и напитки) (20 %)",null,{"v":5.0600000000000005,"d":"5.06 ₽"},{"$f":"Данные[[#This Row],[Предполагаемое количество]]*Данные[[#This Row],[Оценочная стоимость единицы]]","v":{"v":0,"d":"0.00 ₽"}}]
[null,"Мероприятия","Обслуживание автостоянки",1,{"v":300,"d":"300.00 ₽"},{"$f":"Данные[[#This Row],[Предполагаемое количество]]*Данные[[#This Row],[Оценочная стоимость единицы]]","v":{"v":300,"d":"300.00 ₽"}}]
[null,"Мероприятия","Развлечения 1",1,{"v":800,"d":"800.00 ₽"},{"$f":"Данные[[#This Row],[Предполагаемое количество]]*Данные[[#This Row],[Оценочная стоимость единицы]]","v":{"v":800,"d":"800.00 ₽"}}]
[null,"Мероприятия","Развлечения 2",1,{"v":1200,"d":"1,200.00 ₽"},{"$f":"Данные[[#This Row],[Предполагаемое количество]]*Данные[[#This Row],[Оценочная стоимость единицы]]","v":{"v":1200,"d":"1,200.00 ₽"}}]
[null,"Мероприятия","Другие услуги",1,{"v":200,"d":"200.00 ₽"},{"$f":"Данные[[#This Row],[Предполагаемое количество]]*Данные[[#This Row],[Оценочная стоимость единицы]]","v":{"v":200,"d":"200.00 ₽"}}]
[null,"Аудио- и видеоуслуги","Базовая система озвучения и подиум",1,{"v":0,"d":"0.00 ₽"},{"$f":"Данные[[#This Row],[Предполагаемое количество]]*Данные[[#This Row],[Оценочная стоимость единицы]]","v":{"v":0,"d":"0.00 ₽"}},"Предоставляется по месту проведения (обычно)"]
[null,"Аудио- и видеоуслуги","Экран",1,{"v":0,"d":"0.00 ₽"},{"$f":"Данные[[#This Row],[Предполагаемое количество]]*Данные[[#This Row],[Оценочная стоимость единицы]]","v":{"v":0,"d":"0.00 ₽"}},"Предоставляется по месту проведения (обычно)"]
[null,"Аудио- и видеоуслуги","Проектор для XGA- или видеоданных в прокат",1,{"v":45,"d":"45.00 ₽"},{"$f":"Данные[[#This Row],[Предполагаемое количество]]*Данные[[#This Row],[Оценочная стоимость единицы]]","v":{"v":45,"d":"45.00 ₽"}}]
[null,"Аудио- и видеоуслуги","Беспроводная мышь",1,{"v":12,"d":"12.00 ₽"},{"$f":"Данные[[#This Row],[Предполагаемое количество]]*Данные[[#This Row],[Оценочная стоимость единицы]]","v":{"v":12,"d":"12.00 ₽"}}]
[null,"Аудио- и видеоуслуги","Разветвители питания",1,{"v":0,"d":"0.00 ₽"},{"$f":"Данные[[#This Row],[Предполагаемое количество]]*Данные[[#This Row],[Оценочная стоимость единицы]]","v":{"v":0,"d":"0.00 ₽"}},"Предоставляется по месту проведения (обычно)"]
[null,"Аудио- и видеоуслуги","Шнуры-удлинители",1,{"v":0,"d":"0.00 ₽"},{"$f":"Данные[[#This Row],[Предполагаемое количество]]*Данные[[#This Row],[Оценочная стоимость единицы]]","v":{"v":0,"d":"0.00 ₽"}},"Предоставляется по месту проведения (обычно)"]
[null,"Аудио- и видеоуслуги","Петличный микрофон",1,{"v":0,"d":"0.00 ₽"},{"$f":"Данные[[#This Row],[Предполагаемое количество]]*Данные[[#This Row],[Оценочная стоимость единицы]]","v":{"v":0,"d":"0.00 ₽"}},"Предоставляется по месту проведения (обычно)"]
[null,"Аудио- и видеоуслуги","Рабочие и техники (аудио и видео)",1,{"v":300,"d":"300.00 ₽"},{"$f":"Данные[[#This Row],[Предполагаемое количество]]*Данные[[#This Row],[Оценочная стоимость единицы]]","v":{"v":300,"d":"300.00 ₽"}}]
[null,"Аудио- и видеоуслуги","Налог (8,8 %)",null,{"v":31.415999999999997,"d":"31.42 ₽"},{"$f":"Данные[[#This Row],[Предполагаемое количество]]*Данные[[#This Row],[Оценочная стоимость единицы]]","v":{"v":0,"d":"0.00 ₽"}}]
[null,"Дополнительные затраты","Приглашение \n(затраты на печать и рассылку по почте)",null,{"v":834,"d":"834.00 ₽"},{"$f":"Данные[[#This Row],[Предполагаемое количество]]*Данные[[#This Row],[Оценочная стоимость единицы]]","v":{"v":0,"d":"0.00 ₽"}}]
[null,"Дополнительные затраты","Время и издержки",null,{"v":600,"d":"600.00 ₽"},{"$f":"Данные[[#This Row],[Предполагаемое количество]]*Данные[[#This Row],[Оценочная стоимость единицы]]","v":{"v":0,"d":"0.00 ₽"}}]
[null,"Дополнительные затраты","Сотрудники компании (время и издержки)",null,{"v":200,"d":"200.00 ₽"},{"$f":"Данные[[#This Row],[Предполагаемое количество]]*Данные[[#This Row],[Оценочная стоимость единицы]]","v":{"v":0,"d":"0.00 ₽"}},"<Число сотрудников на месте проведения>"]
[null,"Дополнительные затраты","Отзывы клиентов (время и издержки)",null,{"v":100,"d":"100.00 ₽"},{"$f":"Данные[[#This Row],[Предполагаемое количество]]*Данные[[#This Row],[Оценочная стоимость единицы]]","v":{"v":0,"d":"0.00 ₽"}}]
[null,"Подарки","Подарок 1",25,{"v":10,"d":"10.00 ₽"},{"$f":"Данные[[#This Row],[Предполагаемое количество]]*Данные[[#This Row],[Оценочная стоимость единицы]]","v":{"v":250,"d":"250.00 ₽"}},"<Описание подарка>"]
[null,"Подарки","Подарок 2",25,{"v":5,"d":"5.00 ₽"},{"$f":"Данные[[#This Row],[Предполагаемое количество]]*Данные[[#This Row],[Оценочная стоимость единицы]]","v":{"v":125,"d":"125.00 ₽"}},"<Описание подарка>"]
[null,"Рекламные акции","Продукты в подарок",50,{"v":8,"d":"8.00 ₽"},{"$f":"Данные[[#This Row],[Предполагаемое количество]]*Данные[[#This Row],[Оценочная стоимость единицы]]","v":{"v":400,"d":"400.00 ₽"}}]
[null,"Рекламные акции","Скидки на продукты",300,{"v":3,"d":"3.00 ₽"},{"$f":"Данные[[#This Row],[Предполагаемое количество]]*Данные[[#This Row],[Оценочная стоимость единицы]]","v":{"v":900,"d":"900.00 ₽"}}]
[null,"Рекламные акции","Специальные предложения",200,{"v":2.5,"d":"2.50 ₽"},{"$f":"Данные[[#This Row],[Предполагаемое количество]]*Данные[[#This Row],[Оценочная стоимость единицы]]","v":{"v":500,"d":"500.00 ₽"}}]
[null,"Реклама","Буклеты (разработка и выпуск)",{"v":5000,"d":"5,000"},{"v":0.15,"d":"0.15 ₽"},{"$f":"Данные[[#This Row],[Предполагаемое количество]]*Данные[[#This Row],[Оценочная стоимость единицы]]","v":{"v":750,"d":"750.00 ₽"}}]
[null,"Реклама","Рассылки",{"v":15000,"d":"15,000"},{"v":0.04,"d":"0.04 ₽"},{"$f":"Данные[[#This Row],[Предполагаемое количество]]*Данные[[#This Row],[Оценочная стоимость единицы]]","v":{"v":600,"d":"600.00 ₽"}}]
[null,"Реклама","Открытки",{"v":15000,"d":"15,000"},{"v":0.03,"d":"0.03 ₽"},{"$f":"Данные[[#This Row],[Предполагаемое количество]]*Данные[[#This Row],[Оценочная стоимость единицы]]","v":{"v":450,"d":"450.00 ₽"}}]
[null,"Реклама","Телевидение",2,{"v":600,"d":"600.00 ₽"},{"$f":"Данные[[#This Row],[Предполагаемое количество]]*Данные[[#This Row],[Оценочная стоимость единицы]]","v":{"v":1200,"d":"1,200.00 ₽"}}]
[null,"Реклама","Радио",4,{"v":300,"d":"300.00 ₽"},{"$f":"Данные[[#This Row],[Предполагаемое количество]]*Данные[[#This Row],[Оценочная стоимость единицы]]","v":{"v":1200,"d":"1,200.00 ₽"}}]
[null,"Реклама","Газеты",6,{"v":220,"d":"220.00 ₽"},{"$f":"Данные[[#This Row],[Предполагаемое количество]]*Данные[[#This Row],[Оценочная стоимость единицы]]","v":{"v":1320,"d":"1,320.00 ₽"}}]
[null,"Реклама","Рекламные стенды",2,{"v":556,"d":"556.00 ₽"},{"$f":"Данные[[#This Row],[Предполагаемое количество]]*Данные[[#This Row],[Оценочная стоимость единицы]]","v":{"v":1112,"d":"1,112.00 ₽"}}]
[null,"Реклама","Реклама на автобусах",3,{"v":125,"d":"125.00 ₽"},{"$f":"Данные[[#This Row],[Предполагаемое количество]]*Данные[[#This Row],[Оценочная стоимость единицы]]","v":{"v":375,"d":"375.00 ₽"}}]
[null,"Материалы для связей с общественностью","Благотворительные мероприятия",3,{"v":200,"d":"200.00 ₽"},{"$f":"Данные[[#This Row],[Предполагаемое количество]]*Данные[[#This Row],[Оценочная стоимость единицы]]","v":{"v":600,"d":"600.00 ₽"}}]
[null,"Материалы для связей с общественностью","Реклама",4,{"v":200,"d":"200.00 ₽"},{"$f":"Данные[[#This Row],[Предполагаемое количество]]*Данные[[#This Row],[Оценочная стоимость единицы]]","v":{"v":800,"d":"800.00 ₽"}}]
[null,"Материалы для связей с общественностью","Продвижение сотрудников",6,{"v":200,"d":"200.00 ₽"},{"$f":"Данные[[#This Row],[Предполагаемое количество]]*Данные[[#This Row],[Оценочная стоимость единицы]]","v":{"v":1200,"d":"1,200.00 ₽"}}]
[null,"Материалы для связей с общественностью","Спонсорские предложения",3,{"v":200,"d":"200.00 ₽"},{"$f":"Данные[[#This Row],[Предполагаемое количество]]*Данные[[#This Row],[Оценочная стоимость единицы]]","v":{"v":600,"d":"600.00 ₽"}}]

{"sheet":"ДИАГРАММА КАТЕГОРИЙ","index":2,"n_rows":8,"n_cols":13,"rows_kept":8}
[]
[null,"ПЛАН МАРКЕТИНГОВОГО БЮДЖЕТА"]
[]
[null,null,"Основная категория"]
[null,null,"Аудио- и видеоуслуги","Дополнительные затраты","Исследования","Коммуникации","Материалы для связей с общественностью","Мероприятия","Подарки","Реклама","Рекламные акции","Сети","Общий итог"]
[null,"Ожидаемый промежуточный итог",{"v":0,"d":"0.00 ₽"},{"v":7007,"d":"7,007.00 ₽"},{"v":357,"d":"357.00 ₽"},{"v":25650,"d":"25,650.00 ₽"},{"v":2500,"d":"2,500.00 ₽"},{"v":375,"d":"375.00 ₽"},{"v":254,"d":"254.00 ₽"},{"v":1800,"d":"1,800.00 ₽"},{"v":3200,"d":"3,200.00 ₽"},{"v":7100,"d":"7,100.00 ₽"},{"v":48243,"d":"48,243.00 ₽"}]
[]
[null," В этой ячейке находится сводная гистограмма, на которой показаны основные категории и ожидаемые промежуточные итоги."]